Cogmind - Beta 16.1 @@@ ROGUE MODE // 2026.02.15 @ 18:30:25 Player: delto Result: Core destroyed Performance ------------- Evolutions (2) 1000 Regions Visited (9) 1800 Robots Destroyed (69) 345 Value Destroyed (2764) 2764 Prototype IDs (23) 460 Alien Tech Used (0) 0 Bonus (1310) 1310 TOTAL SCORE: 7679 Bonus ------- High Alert Combat Kills 82 Follower Combat Kills 228 Entered Garrisons 200 Used RIF Installer 500 Aligned with FarCom 300 Cogmind --------- Core Integrity 0/550 Matter 65/300 Energy 50/100 System Corruption 0% Temperature Critical (514) Movement Walking (480) Ox5 Location -8/Materials Parts ------- > --- POWER (1) -------- (None) > --- PROPULSION (2) --- Improved Titanium Leg > --- UTILITY (5) ------ Huge Storage Unit Improved Core Shielding Hardened Heavy Armor Plating Hardlight Generator > --- WEAPON (3) ------- (None) > --- INVENTORY (25) --- High-capacity Battery (250) High-capacity Matter Pod (0) Improved Terrain Scanner Improved Targeting Computer Datajack Peak State ------------ > --- POWER ------------ Light Angular Momentum Engine > --- PROPULSION ------- Improved Titanium Leg Improved Titanium Leg > --- UTILITY ---------- Huge Storage Unit Launcher Guidance Computer Hardened Heavy Armor Plating Hardlight Generator > --- WEAPON ----------- AWS/Thermal Missile Launcher > --- INVENTORY -------- Deuterium Engine Nuclear Core Improved Titanium Leg Improved Titanium Leg High-capacity Matter Pod Improved Terrain Scanner Improved Targeting Computer Launcher Guidance Computer Target Analyzer Hardened Heavy Armor Plating Hardened Heavy Armor Plating Hardened Heavy Armor Plating Hardened Heavy Armor Plating Relay Coupler [NC] Relay Coupler [Grunt] High-powered Tractor Beam Gauss Rifle Slug Cannon Improved Grenade Launcher Datajack Segregator [Rating: 56] Favorites ----------- Power Ion Engine Engine Ion Engine Power Core Light Nuclear Core Propulsion Light Treads Treads Light Treads Leg Improved Titanium Leg Wheel Wheel Utility Huge Storage Unit Device Improved Terrain Scanner Storage Huge Storage Unit Processor Terrain Scan Processor Hackware Relay Coupler [NC] Protection Hardened Heavy Armor Plating Weapon Particle Gun Energy Gun Particle Gun Ballistic Gun Autogun Ballistic Cannon Slug Cannon Launcher Missile Launcher Special Weapon Mining Laser Slashing Weapon Segregator Special Melee Weapon Datajack Build | -11 -10 -10 -9 -9 -9 -8 -8 -8 -8 ------- Run | Yrd Mat Min Mat Min Exi Min Mat Gar Mat Slots Evolved 4 | . . . 2 . . . 2 . . Power . | . . . . . . . . . . Propulsion . | . . . . . . . . . . Utility 3 | . . . 2 . . . 1 . . Weapon 1 | . . . . . . . 1 . . Parts Attached 82 | 6 20 2 10 2 . 1 15 13 13 Power 7 | . 2 . 1 . . . 3 1 . Engine 5 | . 2 . . . . . 2 1 . Core 2 | . . . 1 . . . 1 . . Reactor . | . . . . . . . . . . Propulsion 13 | 2 4 . . . . . 2 2 3 Treads 2 | 1 1 . . . . . . . . Leg 10 | . 3 . . . . . 2 2 3 Wheel 1 | 1 . . . . . . . . . Hover . | . . . . . . . . . . Flight . | . . . . . . . . . . Utility 45 | 2 11 1 8 1 . . 7 6 9 Device 14 | 1 4 . 4 . . . 3 . 2 Storage 3 | 1 2 . . . . . . . . Processor 17 | . 4 1 4 1 . . 3 3 1 Hackware 3 | . 1 . . . . . . . 2 Protection 8 | . . . . . . . 1 3 4 Artifact . | . . . . . . . . . . Weapon 17 | 2 3 1 1 1 . 1 3 4 1 Energy Gun 6 | 2 2 . . . . 1 . . 1 Energy Cannon . | . . . . . . . . . . Ballistic Gun 2 | . . . . 1 . . . 1 . Ballistic Cannon 1 | . . 1 . . . . . . . Launcher 4 | . 1 . . . . . 2 1 . Special Weapon 1 | . . . 1 . . . . . . Impact Weapon . | . . . . . . . . . . Slashing Weapon 2 | . . . . . . . 1 1 . Piercing Weapon . | . . . . . . . . . . Special Melee Weapon 1 | . . . . . . . . 1 . Unidentified Prototypes . | . . . . . . . . . . Parts Lost 25 | . 4 . . . . . . 1 20 Power 4 | . 1 . . . . . . . 3 Propulsion 7 | . 2 . . . . . . . 5 Utility 7 | . . . . . . . . 1 6 Weapon 7 | . 1 . . . . . . . 6 Highest Loss Streak 13 | . 1 . . . . . . 1 13 To Critical Strikes . | . . . . . . . . . . Average Backups 22 | 2 21 24 21 24 24 24 23 22 15 Power 1 | . . 1 1 2 3 3 2 1 . Propulsion 1 | 1 1 . . 1 . . 2 2 2 Utility 12 | . 12 14 11 13 13 12 12 13 8 Weapon 6 | . 6 9 8 7 7 9 5 3 2 Tool/Special . | . . . . . . . . . . Unused Backups 51 | 3 9 2 3 2 3 . 21 5 3 Power 5 | . 1 . . . . . 4 . . Propulsion 9 | 3 2 . . . 1 . 2 1 . Utility 16 | . 1 1 . . 2 . 6 3 3 Weapon 21 | . 5 1 3 2 . . 9 1 . Tool/Special . | . . . . . . . . . . Average Slot Usage (%) 94 | . 98 100 99 100 100 88 89 87 83 Engine 8 | . 12 14 7 . . . 6 4 6 Core 2 | . . . 3 11 11 11 2 4 1 Treads 10 | . 6 28 22 22 22 22 6 . . Leg 11 | . 17 . . . . . 11 18 17 Device 17 | . 12 13 26 22 22 22 28 13 10 Storage 11 | . 14 14 11 11 11 11 9 9 9 Processor 4 | . 1 . 5 10 11 11 7 5 . Protection 2 | . . . . . . . . 12 14 Energy Gun 12 | . 22 14 9 10 . 9 9 6 3 Ballistic Gun 1 | . . . . 1 11 . . 1 6 Ballistic Cannon 4 | . . 11 11 11 11 1 3 3 4 Launcher 4 | . 5 2 . . . . 4 7 7 Peak Build Rating 56 | 8 14 15 21 22 22 31 51 56 48 Average Rating 26 | 5 11 14 17 20 21 30 43 48 41 On Entrance 22 | . 8 12 15 21 21 22 31 45 48 Avg Prop Armor Cover (%) 14 | 17 12 . . . . . . . . Naked Turns . | . . . . . . . . . . Heaviest Build 133 | 10 92 96 98 99 97 95 108 129 133 Greatest Support 40 | 20 40 40 40 40 40 40 40 40 40 Greatest Overweight (x) 9 | . 9 2 2 2 2 2 2 3 3 Average Overweight (x) 2 | . 3 2 2 2 2 2 2 2 2 Largest Inventory Capacity 25 | 8 25 25 25 25 25 25 25 25 25 Average Capacity 24 | 7 24 25 25 25 25 25 25 25 25 Most Carried 25 | 4 25 25 25 25 25 25 25 25 25 Average Carried 22 | 2 21 24 21 24 24 24 23 24 18 Final Capacity 25 | 8 25 25 25 25 25 25 25 25 25 Final Carried 25 | 2 25 24 25 25 24 24 25 25 5 Class Distribution -------------------- 36% | Scavenger-Mutant 26% | Mutant 15% | Scavenger-Skirmisher 12% | Tank 4% | Skirmisher Dominant Class ---------------- Scavenger-Mutant | -10/Materials Mutant | -10/Mines Scavenger-Mutant | -9/Materials Scavenger-Mutant | -9/Mines Scavenger-Mutant | -9/Exiles Scavenger-Skirmisher | -8/Mines Scavenger-Skirmisher | -8/Materials Tank | -8/Garrison Tank | -8/Materials Resources | -11 -10 -10 -9 -9 -9 -8 -8 -8 -8 ----------- Run | Yrd Mat Min Mat Min Exi Min Mat Gar Mat Matter Collected 3173 | 260 531 138 203 316 184 . 493 764 284 Remotely 1659 | . 49 . 203 267 . . 350 517 273 Salvage Created 2234 | 108 637 . 103 153 . . 495 457 281 Parts 120 | 9 32 . 14 6 . . 29 21 9 Haulers Intercepted . | . . . . . . . . . . Recyclers Shooed 2 | 1 . . . . . . 1 . . Parts Field Recycled . | . . . . . . . . . . Retrieved Matter . | . . . . . . . . . . Parts Self-Destructed . | . . . . . . . . . . Prevented . | . . . . . . . . . . Parts Restored . | . . . . . . . . . . Kills | -11 -10 -10 -9 -9 -9 -8 -8 -8 -8 ------- Run | Yrd Mat Min Mat Min Exi Min Mat Gar Mat Combat Hostiles Destroyed 49 | . 10 1 2 4 . . 10 15 7 Guns 28 | . 9 1 1 1 . . 7 8 1 Cannons 7 | . . . 1 3 . . 1 1 1 AOE 13 | . . . . . . . 2 6 5 Classes Destroyed 14 | 2 5 1 . . . . 2 4 . Worker 3 | . 1 . . . . . . . 2 Builder 6 | . 2 . 2 . . . 1 . 1 Tunneler 2 | 1 1 . . . . . . . . Recycler 4 | 1 1 . . . . . . . 2 Operator 3 | . 1 . . . . . 2 . . Watcher 2 | . 1 . . . . . . . 1 Swarmer 3 | . . . . . . . . 3 . Grunt 35 | . 10 . 2 4 . . 7 6 6 Duelist 1 | . . . . . . . 1 . . Sentry 2 | . . . . . . . . 1 1 Demolisher 1 | . . 1 . . . . . . . Specialist 1 | . . . . . . . . 1 . Hunter 5 | . . . . . . . 2 3 . Behemoth 1 | . . . . . . . . 1 . Best Kill Streak 8 | 1 3 1 2 4 . . 4 3 8 Combat Bots Only 4 | . 2 1 2 4 . . 3 3 4 Max Kills in Single Turn 3 | 1 1 1 1 1 . . 3 2 3 Gunslinging . | . . . . . . . . . . Exploded 2 | . . . . . . . 1 2 1 Melee . | . . . . . . . . . . Uniques/NPCs Destroyed . | . . . . . . . . . . Combat | -11 -10 -10 -9 -9 -9 -8 -8 -8 -8 -------- Run | Yrd Mat Min Mat Min Exi Min Mat Gar Mat Hostile Shots Fired 397 | . 49 . 12 20 . . 18 66 232 Missed 89 | . 14 . 1 5 . . 7 24 38 Hits 308 | . 35 . 11 15 . . 11 42 194 Melee 4 | . . . . . . . 1 3 . Projectile 304 | . 35 . 11 15 . . 10 39 194 Critical Strikes 14 | . . . . . . . . . 14 Damage Taken 4902 | . 436 . 91 130 . . 150 609 3486 Core 752 | . 83 . 24 23 . . 23 28 571 Absorbed by Shields 416 | . . . 27 51 . . 56 198 84 Redirected to Shielding 35 | . . . . . . . . 5 30 Core Remaining (%) 84 | 100 . 66 . . . 88 . . . Volleys Fired 148 | 4 45 1 14 7 . . 20 29 28 Largest 3 | 2 2 2 2 2 . . 1 3 3 Hottest 143 | 100 130 105 105 105 . . 40 112 143 Shots Fired 330 | 8 89 2 25 14 . . 52 91 49 Gun 229 | 8 88 1 11 7 . . 32 57 25 Cannon 66 | . . 1 11 7 . . 18 19 10 Launcher 32 | . 1 . . . . . 2 15 14 Special 3 | . . . 3 . . . . . . Kinetic 82 | . . 1 11 7 . . 18 23 22 Thermal 216 | 8 88 1 14 7 . . 32 53 13 Explosive 32 | . 1 . . . . . 2 15 14 Electromagnetic . | . . . . . . . . . . Robot Hit Streak 14 | 3 14 1 5 3 . . 7 14 8 Robot Miss Streak 4 | 1 3 . 2 1 . . 3 2 4 Penetration Max 1 | . . . . . . . . . 1 Secondary Targets . | . . . . . . . . . . Autonomous 86 | . . . . . . . 32 54 . Shots Hit Robots 207 | 5 56 1 13 9 . . 30 71 22 Core Hits 121 | 3 26 1 4 8 . . 19 32 28 Critical Kills 3 | . . . 1 2 . . . . . Critical Parts Destroyed 3 | . . . . . . . 1 1 1 Critical Strikes 13 | 1 5 . 1 2 . . 1 1 2 Burn 7 | 1 5 . . . . . . . 1 Destroy 6 | . . . 1 2 . . 1 1 1 Melee Attacks 9 | . . . . . . . 1 1 7 Thermal 7 | . . . . . . . . . 7 Impact . | . . . . . . . . . . Slashing 1 | . . . . . . . 1 . . Piercing . | . . . . . . . . . . Sneak Attacks . | . . . . . . . . . . Combat Hostiles . | . . . . . . . . . . Follow-up Attacks . | . . . . . . . . . . Damage Inflicted 7132 | 61 894 22 294 211 . . 1113 2626 1911 Guns 3632 | 61 833 14 161 91 . . 746 1388 338 Cannons 827 | . . . 133 120 . . 174 309 91 Explosions 2608 | . 46 . . . . . 193 929 1440 Melee . | . . . . . . . . . . Ramming 65 | . 15 8 . . . . . . 42 Kinetic 1023 | . . . 133 120 . . 174 387 209 Thermal 3436 | 61 833 14 161 91 . . 746 1310 220 Explosive 2608 | . 46 . . . . . 193 929 1440 Electromagnetic . | . . . . . . . . . . Impact . | . . . . . . . . . . Slashing . | . . . . . . . . . . Piercing . | . . . . . . . . . . Highest Corruption . | . . . . . . . . . . Average Corruption . | . . . . . . . . . . Corruption Purged . | . . . . . . . . . . Corruption Blocked . | . . . . . . . . . . Overload Shots . | . . . . . . . . . . Overflow Damage 34 | . . . . . . . . 8 26 Projectiles 2 | . . . . . . . . 2 . Explosions 31 | . . . . . . . . 6 25 Melee 1 | . . . . . . . . . 1 Knockbacks 7 | . . . 2 . . . 2 2 1 Impact 1 | . . . . . . . . . 1 Kinetic 5 | . . . 1 . . . 2 2 . Secondary 1 | . . . 1 . . . . . . Self-Inflicted Damage 357 | . . . . . . . . 167 190 Shots 10 | . . . . . . . . 5 5 Rammed 1 | . . 1 . . . . . . . Targets Rammed 14 | . 3 1 . . . . . . 10 Kicked 13 | . 3 . . . . . . . 10 Crushed . | . . . . . . . . . . Highest Temperature 591 | 48 270 45 8 . . . . 138 591 Average Temperature 165 | 22 96 24 5 . . . . 38 292 Received Heat Transfer 2383 | . 225 . 51 68 . . 54 73 1912 Effects 23 | . . . . . . . . . 23 Shutdowns 4 | . . . . . . . . . 4 Energy Bleed 4 | . . . . . . . . . 4 Interference 2 | . . . . . . . . . 2 Matter Decay 1 | . . . . . . . . . 1 Short Circuit 1 | . . . . . . . . . 1 Damage (minor) 4 | . . . . . . . . . 4 Damage (major) 4 | . . . . . . . . . 4 Damage (core) 3 | . . . . . . . . . 3 Siege Activations . | . . . . . . . . . . Martial Activations . | . . . . . . . . . . Shielding Activations . | . . . . . . . . . . Robots Disrupted . | . . . . . . . . . . Combat Hostiles . | . . . . . . . . . . Robots Corrupted . | . . . . . . . . . . Combat Hostiles . | . . . . . . . . . . Parts Fried . | . . . . . . . . . . Impact Corruptions 1 | . . . . . . . . . 1 Robots Melted 1 | . 1 . . . . . . . . Combat Hostiles 1 | . 1 . . . . . . . . Parts Melted 7 | . 5 . . . . . 2 . . Heat Transferred 6668 | 259 2590 37 370 222 . . 962 1628 600 Parts Sabotaged 8 | . . . . . . . . 8 . Parts Stolen . | . . . . . . . . . . Parts Stripped . | . . . . . . . . . . Power Chain Reactions . | . . . . . . . . . . Alert | -11 -10 -10 -9 -9 -9 -8 -8 -8 -8 ------- Run | Yrd Mat Min Mat Min Exi Min Mat Gar Mat Maximum Alert Level 3 | . . . . . . . . 3 2 Low Security (%) 82 | 100 100 100 100 100 . 100 100 25 . Level 1 7 | . . . . . . . . 19 83 Level 2 8 | . . . . . . . . 44 16 Level 3 1 | . . . . . . . . 10 . Level 4 . | . . . . . . . . . . Level 5 . | . . . . . . . . . . High Security . | . . . . . . . . . . Max Security . | . . . . . . . . . . Peak Influence 702 | 5 90 25 54 102 . . 121 702 423 Initial 341 | . . . . . . . . 7 341 Average 106 | . 26 . 12 13 . . 32 412 350 Influence Increases 2264 | 10 542 33 114 112 . . 438 705 310 Destroy 0b10 Robot/C 1180 | . 320 20 60 80 . . 260 300 140 Destroy 0b10 Robot/NC 110 | 10 40 . 15 . . . 15 . 30 Destroy Leader 238 | . 74 10 12 20 . . 60 30 32 Allied During Kill 61 | . 26 3 7 10 . . 15 . . Successful Hack 51 | . 24 . 12 . . . 15 . . Disable Machine 60 | . 15 . . . . . 30 . 15 Anti-Garrison Action 200 | . . . . . . . . 200 . Destroy Structure 244 | . 13 . 8 2 . . 28 130 63 Lose Combat Pursuer 120 | . 30 . . . . . 15 45 30 Influence Decreases 2019 | 10 542 33 114 112 . . 426 15 767 Entered New Map 366 | . . . . . . . . 5 361 Time Decay 1316 | 10 475 33 114 112 . . 366 . 206 Lost Part 250 | . 40 . . . . . . 10 200 Lost Ally 87 | . 27 . . . . . 60 . . Squads Dispatched 6 | . 2 . . . . . 2 . 2 Investigation 2 | . 1 . . . . . 1 . . Extermination . | . . . . . . . . . . Reinforcement 4 | . 1 . . . . . 1 . 2 Assault . | . . . . . . . . . . Garrison . | . . . . . . . . . . Intercept . | . . . . . . . . . . Searches Triggered . | . . . . . . . . . . Construction Impeded 1 | . . . . . . . . . 1 Haulers Reinforced . | . . . . . . . . . . Active Scanning Responses . | . . . . . . . . . . Cargo Convoy Interrupts . | . . . . . . . . . . Stealth | -11 -10 -10 -9 -9 -9 -8 -8 -8 -8 --------- Run | Yrd Mat Min Mat Min Exi Min Mat Gar Mat Distress Signals 5 | . 1 . . . . . 1 . 3 Communications Jammed . | . . . . . . . . . . Distress Signals . | . . . . . . . . . . Times Spotted 80 | . 21 1 4 4 . . 14 20 16 Peak Tracking Total 5 | . 3 1 2 4 . . 4 5 5 Tactical Retreats 6 | . 2 . . . . . 1 1 2 Traps | -11 -10 -10 -9 -9 -9 -8 -8 -8 -8 ------- Run | Yrd Mat Min Mat Min Exi Min Mat Gar Mat Traps Triggered 3 | . . . . . . . 1 2 . Indirectly . | . . . . . . . . . . Trap Hack Attempts . | . . . . . . . . . . Triggered . | . . . . . . . . . . Disarmed . | . . . . . . . . . . Reprogrammed . | . . . . . . . . . . Reused . | . . . . . . . . . . Traps Extracted . | . . . . . . . . . . Installed . | . . . . . . . . . . Triggered . | . . . . . . . . . . Machines | -11 -10 -10 -9 -9 -9 -8 -8 -8 -8 ---------- Run | Yrd Mat Min Mat Min Exi Min Mat Gar Mat Machines Disabled 7 | . 1 . . . . . 2 3 1 Max in Single Turn 1 | . 1 . . . . . 1 1 1 Garrison Relay 1 | . . . . . . . . 1 . Phase Generator 1 | . . . . . . . . 1 . Machines Repaired . | . . . . . . . . . . Machines Dismantled . | . . . . . . . . . . Machines Sabotaged . | . . . . . . . . . . Overloaded Fab Kills . | . . . . . . . . . . Hacking | -11 -10 -10 -9 -9 -9 -8 -8 -8 -8 --------- Run | Yrd Mat Min Mat Min Exi Min Mat Gar Mat Machines Accessed 22 | . 9 . 4 . 1 . 6 1 1 Terminals 17 | . 7 . 3 . . . 5 1 1 Fabricators . | . . . . . . . . . . Repair Stations . | . . . . . . . . . . Recycling Units 2 | . 2 . . . . . . . . Scanalyzers 1 | . . . 1 . . . . . . Garrison Access 1 | . . . . . . . 1 . . Total Hacks 45 | . 25 . 7 . 1 . 10 1 1 Successful 20 | . 10 . 4 . 1 . 5 . . Failed 25 | . 15 . 3 . . . 5 1 1 Catastrophic 2 | . . . 1 . . . 1 . . Database Lockouts . | . . . . . . . . . . Manual 43 | . 25 . 6 . 1 . 10 . 1 Terminals 37 | . 20 . 6 . . . 9 1 1 Fabricators . | . . . . . . . . . . Repair Stations . | . . . . . . . . . . Recycling Units 5 | . 5 . . . . . . . . Scanalyzers 1 | . . . 1 . . . . . . Garrison Access 1 | . . . . . . . 1 . . Terminal Hacks 4 | . 2 . 1 . 1 . . . . Branch Access Points 2 | . 1 . 1 . . . . . . Terminal Index 1 | . 1 . . . . . . . . Proto ID Catalog 1 | . . . . . 1 . . . . Fabricator Hacks . | . . . . . . . . . . Repair Station Hacks . | . . . . . . . . . . Recycling Unit Hacks . | . . . . . . . . . . Scanalyzer 1 | . . . 1 . . . . . . Retrieve Study 1 | . . . 1 . . . . . . Garrison Access Hacks 1 | . . . . . . . 1 . . Unlock Access 1 | . . . . . . . 1 . . Unauthorized Hacks 14 | . 8 . 2 . . . 4 . . Terminals 10 | . 4 . 2 . . . 4 . . Botnet 10 | . 4 . 2 . . . 4 . . Fabricators . | . . . . . . . . . . Repair Stations . | . . . . . . . . . . Recycling Units 4 | . 4 . . . . . . . . Reject 2 | . 2 . . . . . . . . Mask 2 | . 2 . . . . . . . . Scanalyzers . | . . . . . . . . . . Garrison Access . | . . . . . . . . . . Data Cores Recovered 1 | . . . . . . . 1 . . Used . | . . . . . . . . . . Hacking Detections 15 | . 6 . 3 . . . 4 1 1 Full Trace Events . | . . . . . . . . . . Feedback Events . | . . . . . . . . . . Feedback Blocked . | . . . . . . . . . . Robot Schematics Acquired . | . . . . . . . . . . Robots Built . | . . . . . . . . . . Authchips . | . . . . . . . . . . Time . | . . . . . . . . . . Total Robot Build Rating . | . . . . . . . . . . Part Schematics Acquired . | . . . . . . . . . . Parts Built . | . . . . . . . . . . Authchips . | . . . . . . . . . . Time . | . . . . . . . . . . Total Part Build Rating . | . . . . . . . . . . Part Studies Acquired 1 | . . . 1 . . . . . . Parts Repaired . | . . . . . . . . . . Time . | . . . . . . . . . . Parts Recycled . | . . . . . . . . . . Recycled Matter . | . . . . . . . . . . Retrieved Matter . | . . . . . . . . . . Retrieved Components . | . . . . . . . . . . Parts Scanalyzed . | . . . . . . . . . . Part Schematics Acquired . | . . . . . . . . . . Parts Damaged . | . . . . . . . . . . Bothacking | -11 -10 -10 -9 -9 -9 -8 -8 -8 -8 ------------ Run | Yrd Mat Min Mat Min Exi Min Mat Gar Mat Used RIF Installer 1 | . . . . . . . . 1 . Robots Hacked . | . . . . . . . . . . Non-combat . | . . . . . . . . . . Combat . | . . . . . . . . . . Robot Hacks Applied . | . . . . . . . . . . Relay Couplers Released 5 | . . . . . . . . 5 . Machine Destruction 5 | . . . . . . . . 5 . Attached 2 | . . . . . . . . . 2 Fabnet Peak Effective % . | . . . . . . . . . . Robots Rewired . | . . . . . . . . . . Allies Hacked . | . . . . . . . . . . Hacks Repelled . | . . . . . . . . . . Allies | -11 -10 -10 -9 -9 -9 -8 -8 -8 -8 -------- Run | Yrd Mat Min Mat Min Exi Min Mat Gar Mat Total Allies 6 | 1 2 . . 3 . . . . . Largest Group 4 | 1 1 1 1 4 4 4 4 . . Highest-Rated Group 69 | 28 31 31 31 69 69 69 69 . . Highest-Rated Ally 31 | 28 31 31 31 30 29 29 29 . . Total Orders . | . . . . . . . . . . Ally Attacks 89 | . 55 1 8 3 . . 22 . . Total Damage 837 | . 464 25 99 38 . . 211 . . Kills 12 | . 7 . 2 . . . 3 . . Allies Corrupted . | . . . . . . . . . . Allies Melted . | . . . . . . . . . . Intel | -11 -10 -10 -9 -9 -9 -8 -8 -8 -8 ------- Run | Yrd Mat Min Mat Min Exi Min Mat Gar Mat Active Infowar (turns) 6657 | 47 1822 1057 296 840 544 69 1486 438 58 Optics 46 | . . . 46 . . . . . . Terrain 6589 | 47 1822 1057 293 840 544 69 1458 401 58 Structural 1815 | . . . 242 . . . 1451 122 . Seismic 3210 | . . . 191 824 544 69 1445 137 . Machine Analysis 133 | . . . . . . . . 133 . Robot Analysis Total . | . . . . . . . . . . Derelict Logs Recovered 2 | . . 1 . 1 . . . . . Drone Launches . | . . . . . . . . . . Drone Recoveries . | . . . . . . . . . . Exploration | -11 -10 -10 -9 -9 -9 -8 -8 -8 -8 ------------- Run | Yrd Mat Min Mat Min Exi Min Mat Gar Mat Turns Passed 9709 | 120 2941 1090 355 868 544 69 1656 1633 433 Spaces Moved 3056 | 112 834 330 93 343 223 28 575 455 63 Core 5 | 5 . . . . . . . . . Treads 1365 | 1 152 330 93 343 223 28 195 . . Legs 1327 | . 429 . . . . . 380 455 63 Wheels 359 | 106 253 . . . . . . . . Hover . | . . . . . . . . . . Flight . | . . . . . . . . . . Fastest Speed 50 | 50 80 320 240 240 240 240 240 270 270 Average Speed 281 | 79 319 320 293 240 240 240 259 307 328 Slowest Speed 750 | 160 750 320 320 240 240 240 270 340 340 Overloaded Moves . | . . . . . . . . . . Propulsion Burnouts . | . . . . . . . . . . Robots Hopped . | . . . . . . . . . . Potential Cave-ins . | . . . . . . . . . . Cave-ins Triggered . | . . . . . . . . . . Exploration Rate (%) 38 | 4 76 65 13 50 61 14 37 55 12 Regions Visited 9 Branch Regions 4 Pre-discovered Areas . | . . . . . . . . . . Known Exits Taken 3 | . 1 . 1 . . . 1 . . Unknown Exits Taken 5 | 1 . 1 . 1 1 1 . . . Scrap Searched 2 | . . 1 . 1 . . . . . Spaces Dug 4 | . . . 3 . . . 1 . . Terrain Destroyed 299 | . 11 . 8 2 . . 27 184 67 Melee 1 | . . . . . . . 1 . . Projectile 29 | . . . 8 2 . . 12 3 4 AOE 269 | . 11 . . . . . 14 181 63 Terrain Rammed . | . . . . . . . . . . Walls Destroyed . | . . . . . . . . . . Machines Disabled . | . . . . . . . . . . Actions | -11 -10 -10 -9 -9 -9 -8 -8 -8 -8 --------- Run | Yrd Mat Min Mat Min Exi Min Mat Gar Mat Total 3850 | 134 1012 361 138 372 235 32 717 647 202 Wait 206 | . 44 23 . 8 5 1 6 67 52 Move 3048 | 111 833 329 92 342 222 27 575 454 63 Hop . | . . . . . . . . . . Pick Up 139 | 7 43 2 9 4 3 1 40 27 3 Fast Attach 14 | 6 5 . . . . . 2 . 1 Attach 38 | . 4 . 2 . . 1 2 10 19 Detach 8 | . 1 . . . . 1 2 . 4 Swap 122 | . 17 3 18 8 . . 32 31 13 Drop 94 | 6 17 2 3 3 5 1 37 18 2 Fire 148 | 4 45 1 14 7 . . 20 29 28 Melee 9 | . . . . . . . 1 1 7 Ram . | . . . . . . . . . . Kick 13 | . 3 . . . . . . . 10 Crush 1 | . . 1 . . . . . . . Escape Stasis 10 | . . . . . . . . 10 . Rewire . | . . . . . . . . . . Trap . | . . . . . . . . . . Miscellaneous . | . . . . . . . . . . Route ------- -11/Scrapyard -10/Materials (discovered 3 exits: *Mat / *Min x2) -10/Mines -9/Materials (discovered 2 exits: *Min / Sto) -9/Mines -9/Exiles -8/Mines (discovered 2 exits: *Mat x2) -8/Materials (discovered 3 exits: *Fac x2 / Gar) -8/Garrison -8/Materials History --------- Turn | Location | Event 32 | -11/Scrapyard | Found Botcube 33 | -11/Scrapyard | Discovered new exit (range 15) 44 | -11/Scrapyard | Botcube activated 52 | -11/Scrapyard | Botcube completed mutation into treaded form, armed with 1 gun. 121 | -11/Scrapyard | Entered Materials 121 | -10/Materials | Accompanied by 1 ally 122 | -10/Materials | Met a group of wandering Federalists 303 | -10/Materials | Build established: Mutant 447 | -10/Materials | Discovered new exit (range 16) 795 | -10/Materials | Found Botcube 906 | -10/Materials | Botcube activated 918 | -10/Materials | Botcube completed mutation into wheeled form, armed with 1 gun. 1135 | -10/Materials | Build established: Scavenger-Mutant 1516 | -10/Materials | Found Botcube 1714 | -10/Materials | Botcube activated 1728 | -10/Materials | Botcube completed mutation into legged form, armed with 2 guns. 2007 | -10/Materials | Discovered new exit (range 13) 2232 | -10/Materials | Identified exit to Mines 2252 | -10/Materials | Discovered new exit (range 16) 3020 | -10/Materials | Build established: Mutant 3062 | -10/Materials | Entered Mines 3062 | -10/Mines | Accompanied by 1 ally 3063 | -10/Mines | Assembled infested the area 3064 | -10/Mines | Met a Derelict bent on vengeance 3251 | -10/Mines | A weapon hastily lodged in a ceiling crevice suddenly fell to the ground 3389 | -10/Mines | Learned Materials terminal intel 4041 | -10/Mines | Discovered new exit (range 6) 4152 | -10/Mines | Entered Materials 4152 | -9/Materials | Accompanied by 1 ally 4152 | -9/Materials | Evolved 2 slots: Utility x2 4153 | -9/Materials | Loaded intel: 12 terminal locations 4326 | -9/Materials | Identified exit to Mines 4326 | -9/Materials | Identified exit to Storage 4507 | -9/Materials | Entered Mines 4507 | -9/Mines | Accompanied by 1 ally 4632 | -9/Mines | Learned location of 1 exit from Materials 4759 | -9/Mines | Assisted by bots powering up and referring to "LRC-V3" 4800 | -9/Mines | Build established: Scavenger-Mutant 5358 | -9/Mines | Deemed a non-threat by the Exiles lab entrance 5358 | -9/Mines | Discovered new exit (range 5) 5375 | -9/Mines | Entered Exiles 5375 | -9/Exiles | Accompanied by 4 allies 5433 | -9/Exiles | Met 8R-AWN 5476 | -9/Exiles | Met EX-HEX 5546 | -9/Exiles | Met EX-BIN 5575 | -9/Exiles | Aligned with FarCom system 5577 | -9/Exiles | Given EX-Vault access code 5637 | -9/Exiles | Opened EX-Vault 5675 | -9/Exiles | Found AWS/Thermal 5738 | -9/Exiles | Warned to stay clear of 0b10 Research branches 5744 | -9/Exiles | Exiles lab attacked by MAIN.C 5896 | -9/Exiles | Discovered new exit (range 10) 5919 | -9/Exiles | Left Exiles lab with AWS/Thermal 5919 | -9/Exiles | Entered Mines 5919 | -8/Mines | Accompanied by 4 allies 5952 | -8/Mines | Discovered new exit (range 12) 5978 | -8/Mines | Discovered new exit (range 13) 5988 | -8/Mines | Entered Materials 5988 | -8/Materials | Accompanied by 4 allies 5988 | -8/Materials | Evolved 2 slots: Utility x1, Weapon x1 5989 | -8/Materials | Identified exit to Factory 6306 | -8/Materials | Discovered exit to Factory (range 11) 6477 | -8/Materials | Build established: Scavenger-Skirmisher 7644 | -8/Materials | Identified exit to Garrison 7644 | -8/Materials | Entered Garrison 7715 | -8/Garrison | Triggered checkpoint 7965 | -8/Garrison | Build established: Tank 8063 | -8/Garrison | Phase Generator disabled 8063 | -8/Garrison | Spotted B-75 Beast 8077 | -8/Garrison | Destroyed B-75 Beast 8272 | -8/Garrison | Garrison Relay disabled 8574 | -8/Garrison | Installed Relay Interface Framework 8618 | -8/Garrison | Triggered checkpoint 8802 | -8/Garrison | AWS/Thermal suddenly broke down 9098 | -8/Garrison | Triggered checkpoint 9250 | -8/Garrison | Discovered new exit (range 8) 9277 | -8/Garrison | Entered Materials 9641 | -8/Materials | Lost 6 parts (1p1n1u3w) 9667 | -8/Materials | Core integrity fell below 50% 9694 | -8/Materials | Core integrity fell below 20% 9711 | -8/Materials | Core destroyed Last Messages --------------- 09701_ Kicked G-47 Trooper. 09701_ U-05 Engineer lays Concrete. 09702_ Overheating: Core damaged (-93). 09702_ K-01 Serf collects debris. 09702_ Nuclear Core destroyed. 09702_ Critical hit (Burn: +37). 09703_ The unstable cave ceiling collapses. 09703_ U-05 Engineer lays Concrete. 09704_ Plasma Rifle destroyed. 09705_ Hrd. Heavy Armor Plating destroyed. 09706_ Overheating: Imp. Titanium Leg damaged (-38). 09706_ Overheating: Hrd. Heavy Armor Plating damaged (-199). 09706_ Overheating: Huge Storage Unit damaged (-222). 09706_ U-05 Engineer lays Concrete. 09706_ K-01 Serf collects debris. 09708_ U-05 Engineer lays Concrete. 09709_ Kicked G-47 Trooper. 09709_ U-05 Engineer lays Concrete. 09710_ K-01 Serf collects debris. 09711_ Overheating: Core damaged (-82). Map ----- +----------------------------------------------------+ | ?????????????????????????????????????????????????? | | ?????????????????????????????????????????????????? | | ?????????????????????????????????????????????????? | | ?????????????????????????????????????????????????? | | ?????????????????????????????????????????????????? | | ?????????????????????????????????????????????????? | | ?????????????????????????????????????????????????? | | ?????????????????????????????????????????????????? | | ?????????????????????????????????????????????????? | | ?????????????????????????????????????????????????? | | ??????????????????????? [?????????????????????? | | ?????????????????????? =/ ???????????????????? | | ?????????????????? ???" ! #?????????????????? | | ???????????????? #"T +?????????????????? | | ???????????????? #"" #?????????????????? | | ????????????????? ] ^ #?????????????????? | | ?????????????##### o #?????????????????? | | ?????????????# ! #?????????????????? | | ?????????????# #???????????#?????? | | ??????????????? ! #?????????????????? | | ??????????????#+# #g !! #?????????????????? | | ????????g?????? #????##???#??????#? | | ?????????????????" ]#######???????????? | | ???????????????????# #[ [#???????????? | | ???????????????????# gk g # #???????????? | | ???????????????????# [@ # """ #???????????? | | ???????????????????# = """ #????#??????? | | ???????????????????# u """ #????????#??? | | ???????????????????# r ##??????????? | | ????????????????Y??# ### =# = ######??????? | | ???????????????????# # ######## ##?????? | | ???????????????????# ## ################## | | ???????????????????###+#### | | ??????????????????????????# | | ??????????????????????????# | | ??????????????????????????# ##########+####### | | ??????????????????????????###+######## ????? | | ??????????????????????????# ## #?? | | ??????????????????????????# """ """ ## #?? | | ??????????????????????????# "T" """ ## ##? | | ??????????????????????????# """ ## #?? | | ??????????????????????????# [ ## ] #?? | | ??????????????????????????# ## =/ #?? | | ??????????????????????????# ## = #?? | | ??????????????????????????# ############?? | | ??????????????????????????###########????????????? | | | | | | | | | +----------------------------------------------------+ Best States ------------- Heat Dissipation 52 Energy Generation 18 Energy Capacity 275 Matter Stores 300 Matter Capacity 300 Sight Range 18 Terrain Scan Range 16 Terrain Scan Density 110 Armor Coverage 1200 Core Shielding 30 Utility Shielding 33 Evasion (%) 44 Targeting Accuracy 5 Launcher Accuracy 20 Target Analysis 5 Recoil Reduction 2 Offensive Hacking 10 Relay Coupler Types 2 Relay Coupler Value 51 Item Schematics ----------------- None Robot Schematics ------------------ None Fabricated ------------ Nothing Repaired ---------- Nothing Studied --------- Lgt. Treads | -9/Materials | Hacked Alien Tech Used ----------------- None Achievements -------------- None Challenges ------------ None Game ------ Seed GunPhysicsThruster Manual? 0 Play Time 01:32:28 Cumulative 115.5 hours Start 2026.02.15 @ 13:36:25 End 2026.02.15 @ 18:30:25 Sessions 7 Manual Loads 0 Difficulty Rogue Special Mode None Game No. 143 Rogue 143 Adventurer 0 Explorer 0 Win Type - Total 1 Types 1/0/0/0/0/0/0/0/0/0 Lore% 24 Gallery% 45 Achievement% 31 Wizard Run 0 Options --------- Layout 0 ASCII 0 Keyboard 0 Movement Mouse Keybinds 0 Fullscreen 1 Font 24/Smallcaps Map View 76x50 Zoom Use 0% Tactical HUD 1 Map Filters NONE Filters NONE Steam 1 RUN: fd2584a6-fd28-4550-94e2-2ae63f5c9e27